bitfinex/quotes_BTCUSD_20241003
["timestamp","ask_amount","ask_price","bid_price","bid_amount"]
[1727960681896,0.24283646,60588.0,60585.0,0.24767802]
[1727960682146,0.07778646,60588.0,60584.0,0.165059]
[1727960682398,0.07778646,60588.0,60585.0,0.165056]
[1727960682633,0.13215493,60587.0,60586.0,0.165054]
[1727960682861,0.13413375,60587.0,60583.0,0.330121]
[1727960683110,0.13413375,60587.0,60581.0,0.001636]
[1727960683111,0.13601159,60587.0,60586.0,0.001]
[1727960683361,0.13413375,60587.0,60586.0,0.165054]
[1727960683615,0.13413375,60587.0,60583.0,0.330121]
[1727960683616,0.02587271,60588.0,60585.0,0.003]
[1727960683844,0.02587271,60588.0,60587.0,0.165051]
[1727960684357,0.001,60587.0,60586.0,0.002]
[1727960684608,0.30199449,60587.0,60586.0,0.002]
[1727960684849,0.13694349,60587.0,60585.0,0.001]
[1727960685091,0.02687271,60588.0,60586.0,0.24767802]
[1727960685321,0.02687271,60588.0,60587.0,0.002]
[1727960685794,0.001,60588.0,60587.0,0.002]
[1727960686291,0.330059,60596.0,60589.0,0.165044]
[1727960686571,0.54602457,60595.0,60589.0,0.165044]
[1727960686803,0.005,60588.0,60587.0,0.495151]
[1727960687029,0.12061266,60594.0,60589.0,0.165044]
[1727960687259,0.13345275,60593.0,60587.0,0.001]
[1727960687495,0.13345275,60593.0,60591.0,0.165039]
[1727960687752,0.13345275,60593.0,60590.0,0.330085]
[1727960687985,0.165039,60592.0,60587.0,0.16505]
[1727960688207,0.36191851,60592.0,60588.0,0.165048]
[1727960688446,0.19687951,60592.0,60586.0,0.330104]
[1727960688712,0.19687951,60592.0,60591.0,0.165041]
[1727960688713,0.13372513,60592.0,60591.0,0.165041]
[1727960688964,0.02587187,60591.0,60590.0,0.165043]
[1727960689901,0.165048,60589.0,60585.0,0.165056]
[1727960690127,0.35595687,60591.0,60586.0,0.165053]
[1727960690432,0.165047,60589.0,60586.0,0.165053]
[1727960690655,0.22921195,60590.0,60586.0,0.165053]
[1727960691122,0.46402343,60589.0,60582.0,0.330129]
[1727960691366,0.22575291,60589.0,60587.0,0.165051]
[1727960691602,0.39079991,60589.0,60586.0,0.003]
[1727960691855,0.08109207,60588.0,60586.0,0.002]
[1727960692113,0.08109207,60588.0,60586.0,0.166052]
[1727960692347,0.22575291,60589.0,60586.0,0.166052]
[1727960692348,0.02587187,60591.0,60587.0,0.330102]
[1727960692555,0.02587187,60591.0,60589.0,0.165045]
[1727960693314,0.02587187,60591.0,60587.0,0.330102]
[1727960693543,0.02587187,60591.0,60589.0,0.165046]
[1727960693778,0.13925022,60591.0,60589.0,0.165046]
[1727960694500,0.330094,60589.0,60587.0,0.001]
[1727960694733,0.13580727,60588.0,60577.0,0.330154]
[1727960694965,0.165065,60582.0,60579.0,0.165072]
[1727960695655,0.00187784,60583.0,60580.0,0.16507]
[1727960695661,0.13392943,60588.0,60580.0,0.330141]
[1727960695885,0.165059,60585.0,60580.0,0.495209]
[1727960696112,0.13461052,60584.0,60581.0,0.166704]
[1727960696339,0.13461052,60584.0,60582.0,0.165064]
[1727960696569,0.29967152,60584.0,60581.0,0.001636]
[1727960696818,0.1152142,60587.0,60582.0,0.165065]
[1727960696819,0.165057,60585.0,60582.0,0.165065]
[1727960697055,0.20998582,60586.0,60582.0,0.165065]
[1727960697284,0.20998582,60586.0,60583.0,0.165061]
[1727960697987,0.0708043,60586.0,60583.0,0.165061]
[1727960698227,0.10304495,60585.0,60583.0,0.165061]
[1727960698928,0.10304495,60585.0,60584.0,0.16506]
[1727960699166,0.02787348,60586.0,60584.0,0.16506]
[1727960700094,0.02787348,60586.0,60585.0,0.165057]
[1727960700628,0.24767802,60594.0,60585.0,0.082]
[1727960700877,0.165045,60590.0,60583.0,0.002]
[1727960701108,0.001,60585.0,60583.0,0.003]
[1727960701341,0.330109,60586.0,60581.0,0.001636]
[1727960701566,0.10789612,60585.0,60581.0,0.001636]
[1727960701794,0.10789612,60585.0,60581.0,0.166702]
[1727960701795,0.16506,60584.0,60581.0,0.166702]
[1727960702026,0.16506,60584.0,60581.0,0.001636]
[1727960702263,0.13454241,60586.0,60583.0,0.57779902]
[1727960702501,0.24767802,60591.0,60585.0,0.330113]
[1727960702752,0.0812,60606.0,60586.0,0.00330093]
[1727960703005,0.24767802,60603.0,60602.0,0.165011]
[1727960703372,0.24767802,60617.0,60609.0,0.164991]
[1727960703591,0.24767802,60617.0,60616.0,0.164972]
[1727960703817,0.24767802,60617.0,60609.0,0.55122383]
[1727960703818,0.24767802,60635.0,60623.0,0.164953]
[1727960704277,0.24767802,60635.0,60623.0,0.1]
[1727960704502,0.24767802,60635.0,60630.0,0.329867]
[1727960704733,0.24767802,60635.0,60626.0,0.164945]
[1727960704734,0.02585432,60633.0,60626.0,0.164945]
[1727960704956,0.164913,60638.0,60630.0,0.329866]
[1727960705175,0.164913,60638.0,60633.0,0.164924]
[1727960705176,0.2393164,60638.0,60633.0,0.164924]
[1727960705411,0.00269584,60641.0,60624.0,0.24767802]
[1727960705412,0.000818,60641.0,60632.0,0.329856]
[1727960705683,0.000818,60641.0,60640.0,0.164907]
[1727960705910,0.000818,60641.0,60630.0,0.28273759]
[1727960705911,0.000818,60641.0,60635.0,0.32984]
[1727960706123,0.165723,60641.0,60635.0,0.32984]
[1727960706357,0.0496338,60640.0,60637.0,0.164914]
[1727960706587,0.165723,60641.0,60632.0,0.329855]
[1727960706588,0.33250884,60641.0,60632.0,0.329855]
[1727960706824,0.33250884,60641.0,60624.0,0.24767802]
[1727960706825,0.1289346,60639.0,60624.0,0.24767802]
[1727960707058,0.329849,60634.0,60625.0,0.164946]
[1727960708723,0.164963,60620.0,60617.0,0.24767802]
[1727960708953,0.0164963,60619.0,60617.0,0.24767802]
[1727960709206,0.0164963,60619.0,60618.0,0.164967]
[1727960709445,0.0164963,60619.0,60617.0,0.164968]
[1727960709672,0.0164963,60619.0,60618.0,0.164967]
[1727960709942,0.00187784,60623.0,60617.0,0.24767802]
[1727960710172,0.001,60631.0,60617.0,0.00329894]
[1727960710396,0.24767802,60627.0,60617.0,0.00329894]
[1727960710614,0.12902893,60631.0,60629.0,0.164937]
[1727960710888,0.26946422,60630.0,60629.0,0.164937]
[1727960711128,0.329816,60640.0,60630.0,0.329869]
[1727960711351,0.329816,60640.0,60635.0,0.164921]
[1727960711352,0.24767802,60636.0,60635.0,0.164921]
[1727960711578,0.21454028,60636.0,60633.0,0.164925]
[1727960711804,0.1276007,60635.0,60633.0,0.164925]
[1727960712035,0.1276007,60635.0,60634.0,0.164923]
[1727960712711,0.1276007,60635.0,60633.0,0.329852]
[1727960712712,0.02585361,60636.0,60635.0,0.164921]
[1727960713710,0.02885361,60636.0,60635.0,0.164921]
[1727960713965,0.02585361,60636.0,60635.0,0.41259902]
[1727960714220,0.000818,60641.0,60640.0,0.164907]
[1727960714709,0.000818,60641.0,60637.0,0.329826]
[1727960714710,0.000818,60641.0,60639.0,0.164908]
[1727960714931,0.000818,60641.0,60635.0,0.005]
[1727960714932,0.1268528,60640.0,60635.0,0.005]
[1727960715156,0.1268528,60640.0,60631.0,0.329859]
[1727960715157,0.4566708,60640.0,60631.0,0.329859]
[1727960715377,0.07668755,60639.0,60633.0,0.24767802]
[1727960715596,0.29231172,60638.0,60633.0,0.41260302]
[1727960715815,0.29231172,60638.0,60633.0,0.164925]
[1727960715816,0.164917,60637.0,60633.0,0.164925]
[1727960716050,0.164917,60637.0,60626.0,0.24767802]
[1727960716051,0.164928,60633.0,60628.0,0.164939]
[1727960716339,0.164928,60633.0,60629.0,0.164936]
[1727960716340,0.164926,60633.0,60629.0,0.164936]
[1727960717046,0.164926,60633.0,60620.0,0.329919]
[1727960717047,0.12995457,60632.0,60620.0,0.329919]
[1727960717289,0.28273759,60621.0,60619.0,0.24767802]
[1727960717768,0.61263259,60626.0,60620.0,0.164961]
[1727960718019,0.12916498,60625.0,60615.0,0.329951]
[1727960718263,0.329879,60629.0,60623.0,0.329907]
[1727960718264,0.164938,60629.0,60623.0,0.329907]
[1727960718489,0.12875685,60629.0,60610.0,0.53041561]
[1727960718744,0.27353491,60628.0,60611.0,0.16318671]
[1727960718971,0.164957,60622.0,60617.0,0.164968]
[1727960719249,0.329897,60625.0,60618.0,0.164965]
[1727960719250,0.164955,60623.0,60618.0,0.164965]
[1727960719487,0.12950511,60623.0,60617.0,0.24767802]
[1727960719750,0.02585689,60628.0,60615.0,0.329949]
[1727960719751,0.27353491,60628.0,60615.0,0.329949]
[1727960720009,0.164949,60625.0,60620.0,0.16496]
[1727960720239,0.16491366,60627.0,60619.0,0.329929]
[1727960720480,0.001,60623.0,60622.0,0.164954]
[1727960720713,0.09084237,60623.0,60622.0,0.164954]
[1727960721214,0.329874,60630.0,60617.0,0.24767802]
[1727960721215,0.164935,60630.0,60617.0,0.24767802]
[1727960721456,0.37677498,60629.0,60611.0,0.1]
[1727960721712,0.37677498,60629.0,60625.0,0.164947]
[1727960721973,0.37677498,60629.0,60623.0,0.329902]
[1727960721974,0.09164275,60628.0,60623.0,0.329902]
[1727960722219,0.164943,60627.0,60622.0,0.005]
[1727960722483,0.09164275,60628.0,60624.0,0.16495]
[1727960722721,0.09253352,60627.0,60624.0,0.16495]
[1727960722991,0.164953,60623.0,60622.0,0.005]
[1727960723244,0.29606383,60623.0,60622.0,0.005]
[1727960723473,0.29606383,60623.0,60619.0,0.24767802]
[1727960723474,0.13111083,60623.0,60619.0,0.24767802]
[1727960723704,0.164957,60622.0,60619.0,0.24767802]
[1727960723997,0.02585711,60628.0,60619.0,0.24767802]
[1727960724232,0.02585711,60628.0,60627.0,0.164943]
[1727960725657,0.329859,60632.0,60625.0,0.164946]
[1727960725885,0.329859,60632.0,60609.0,0.002]
[1727960725886,0.12855279,60628.0,60608.0,0.4723]
[1727960726159,0.164956,60622.0,60621.0,0.24767802]
[1727960726398,0.164956,60622.0,60619.0,0.164964]
[1727960726627,0.329911,60623.0,60617.0,0.164968]
[1727960726881,0.45948415,60623.0,60618.0,0.164966]
[1727960727110,0.16496,60621.0,60615.0,0.329951]
[1727960727400,0.09543472,60620.0,60618.0,0.164965]
[1727960728342,0.09543472,60620.0,60619.0,0.164964]
[1727960728862,0.09543472,60620.0,60617.0,0.329939]
[1727960728863,0.09543472,60620.0,60618.0,0.164967]
[1727960729113,0.02585875,60620.0,60619.0,0.164964]
[1727960729911,0.02785875,60620.0,60619.0,0.164964]
[1727960730178,0.001,60620.0,60619.0,0.164964]
[1727960730438,0.001,60620.0,60619.0,0.169964]
[1727960730690,0.002,60620.0,60619.0,0.169964]
[1727960731166,0.001,60620.0,60619.0,0.164964]
[1727960731427,0.24767802,60633.0,60627.0,0.164943]
[1727960731639,0.24767802,60633.0,60626.0,0.164944]
[1727960731640,0.164936,60630.0,60626.0,0.164944]
[1727960731893,0.0165755,60627.0,60625.0,0.164948]
[1727960732140,0.164951,60624.0,60619.0,0.005]
[1727960732373,0.28355659,60628.0,60619.0,0.005]
[1727960732374,0.164961,60621.0,60619.0,0.005]
[1727960732606,0.22285655,60620.0,60619.0,0.005]
[1727960732856,0.35249773,60620.0,60619.0,0.005]
[1727960733098,0.37835731,60620.0,60619.0,0.005]
[1727960733329,0.37835731,60620.0,60613.0,0.16498]
[1727960733330,0.164971,60617.0,60613.0,0.16498]
[1727960733572,0.2952245,60617.0,60613.0,0.16498]
[1727960733855,0.2952245,60617.0,60603.0,0.34767802]
[1727960733856,0.02685958,60620.0,60603.0,0.34767802]
[1727960734084,0.02785958,60620.0,60617.0,0.164968]
[1727960734316,0.09040364,60620.0,60618.0,0.164967]
[1727960734557,0.09040364,60620.0,60603.0,0.34767802]
[1727960734558,0.08840364,60620.0,60616.0,0.329943]
[1727960734790,0.02585958,60620.0,60619.0,0.164964]
[1727960735740,0.330703,60628.0,60623.0,0.164953]
[1727960735741,0.164946,60626.0,60623.0,0.164953]
[1727960735964,0.330703,60628.0,60610.0,0.57765402]
[1727960735965,0.000819,60628.0,60620.0,0.00149704]
[1727960736195,0.000819,60628.0,60613.0,0.0902]
[1727960736424,0.164946,60626.0,60622.0,0.164955]
[1727960736663,0.164946,60626.0,60612.0,0.1]
[1727960736664,0.329904,60624.0,60614.0,0.02148345]
[1727960736904,0.02586064,60625.0,60617.0,0.24767802]
[1727960737129,0.000819,60628.0,60623.0,0.001]
[1727960737130,0.24767802,60624.0,60623.0,0.001]
[1727960737360,0.164947,60626.0,60622.0,0.164955]
[1727960737604,0.164947,60626.0,60624.0,0.164948]
[1727960737605,0.12902893,60626.0,60624.0,0.164948]
[1727960737858,0.12902893,60626.0,60623.0,0.164953]
[1727960738081,0.12902893,60626.0,60621.0,0.329918]
[1727960738302,0.29397493,60626.0,60622.0,0.164954]
[1727960738528,0.002,60624.0,60622.0,0.164954]
[1727960738987,0.02785732,60624.0,60622.0,0.164954]
[1727960739440,0.03226513,60623.0,60621.0,0.164958]
[1727960739691,0.03226513,60623.0,60619.0,0.329924]
[1727960739692,0.164967,60618.0,60617.0,0.004]
[1727960739923,0.12991332,60618.0,60604.0,0.03443975]
[1727960740208,0.12991332,60618.0,60603.0,0.34767802]
[1727960740209,0.17825086,60617.0,60609.0,0.329981]
[1727960740430,0.164978,60614.0,60611.0,0.164985]
[1727960740885,0.164976,60615.0,60611.0,0.164985]
[1727960741560,0.164976,60615.0,60610.0,0.002]
[1727960741561,0.164984,60612.0,60610.0,0.002]
[1727960741808,0.42549856,60612.0,60605.0,0.330003]
[1727960742043,0.42549856,60612.0,60603.0,0.24767802]
[1727960742044,0.28273759,60606.0,60603.0,0.24767802]
[1727960742294,0.28273759,60606.0,60604.0,0.24767802]
[1727960742530,0.13079789,60611.0,60596.0,0.24767802]
[1727960742531,0.164992,60609.0,60606.0,0.164999]
[1727960742773,0.329971,60612.0,60605.0,0.165]
[1727960742774,0.13127427,60608.0,60605.0,0.165]
[1727960743003,0.13127427,60608.0,60604.0,0.330006]
[1727960743466,0.13127427,60608.0,60602.0,0.330018]
[1727960743467,0.29627027,60608.0,60602.0,0.330018]
[1727960743700,0.164997,60607.0,60604.0,0.165005]
[1727960743976,0.233748,60608.0,60605.0,0.165001]
[1727960744226,0.02586419,60609.0,60608.0,0.164994]
[1727960744935,0.02586419,60609.0,60608.0,0.16829362]
[1727960745188,0.164946,60626.0,60621.0,0.329917]
[1727960745433,0.24767802,60624.0,60622.0,0.329911]
[1727960745661,0.24767802,60624.0,60613.0,0.329959]
[1727960745893,0.164954,60623.0,60619.0,0.164963]
[1727960746125,0.24767802,60621.0,60610.0,0.329977]
[1727960746349,0.0825555,60623.0,60617.0,0.329937]
[1727960746633,0.0825555,60623.0,60617.0,0.494904]
[1727960746634,0.164959,60621.0,60617.0,0.494904]
[1727960747112,0.164959,60621.0,60613.0,0.329962]
[1727960747113,0.0825555,60623.0,60613.0,0.329962]
[1727960747364,0.0825555,60623.0,60612.0,0.329966]
[1727960747365,0.02648669,60620.0,60612.0,0.329966]
[1727960747607,0.16497,60617.0,60614.0,0.24767802]
[1727960747850,0.13011743,60619.0,60617.0,0.166969]
[1727960748081,0.13011743,60619.0,60615.0,0.329948]
[1727960748082,0.22333544,60619.0,60616.0,0.164971]
[1727960748328,0.24919524,60619.0,60616.0,0.164971]
[1727960748548,0.15597723,60619.0,60615.0,0.329948]
[1727960749042,0.15597723,60619.0,60617.0,0.164969]
[1727960749285,0.0258598,60619.0,60618.0,0.164967]
[1727960749783,0.000819,60628.0,60627.0,0.164943]
[1727960750270,0.0752295,60628.0,60627.0,0.164943]
[1727960750514,0.0752295,60628.0,60615.0,0.004]
[1727960750515,0.164954,60623.0,60615.0,0.004]
[1727960750752,0.20566013,60628.0,60621.0,0.24767802]
[1727960750753,0.1312469,60627.0,60621.0,0.24767802]
[1727960750984,0.1312469,60627.0,60618.0,0.004]
[1727960750985,0.164964,60619.0,60618.0,0.004]
[1727960751211,0.164964,60619.0,60615.0,0.164973]
[1727960751451,0.4596262,60622.0,60614.0,0.24767802]
[1727960751683,0.2946672,60622.0,60614.0,0.24767802]
[1727960751914,0.164968,60618.0,60614.0,0.164976]
[1727960752140,0.49488,60621.0,60617.0,0.16497]
[1727960752364,0.19082118,60620.0,60617.0,0.16497]
[1727960752583,0.04580286,60619.0,60617.0,0.16497]
[1727960753288,0.04580286,60619.0,60616.0,0.164972]
[1727960753536,0.04580286,60619.0,60617.0,0.164969]
[1727960753997,0.164967,60618.0,60617.0,0.002]
[1727960754227,0.164967,60618.0,60608.0,0.329988]
[1727960754228,0.329953,60615.0,60610.0,0.164989]
[1727960754490,0.329953,60615.0,60608.0,0.329988]
[1727960754491,0.16498,60614.0,60608.0,0.329988]
[1727960754721,0.164976,60615.0,60611.0,0.164986]
[1727960754950,0.164976,60615.0,60606.0,0.329996]
[1727960754951,0.13240353,60614.0,60606.0,0.329996]
[1727960755182,0.28273759,60610.0,60602.0,0.330018]
[1727960755436,0.28273759,60610.0,60597.0,0.330048]
[1727960755437,0.330002,60606.0,60597.0,0.330048]
[1727960755672,0.17487041,60609.0,60596.0,0.24767802]
[1727960755673,0.16502,60599.0,60596.0,0.24767802]
[1727960755896,0.33002,60603.0,60596.0,0.24767802]
[1727960756124,0.33002,60603.0,60582.0,0.04926197]
[1727960756125,0.13424121,60602.0,60593.0,0.330067]
[1727960756351,0.13424121,60602.0,60594.0,0.330064]
[1727960756352,0.16502,60599.0,60594.0,0.330064]
[1727960756586,0.16502,60599.0,60595.0,0.165029]
[1727960756845,0.00187784,60599.0,60595.0,0.165027]
[1727960757080,0.16689784,60599.0,60587.0,0.330102]
[1727960757312,0.00187784,60599.0,60595.0,0.165028]
[1727960757559,0.00187784,60599.0,60592.0,0.330074]
[1727960757560,0.06709731,60598.0,60594.0,0.330065]
[1727960757795,0.00187784,60597.0,60581.0,0.001636]
[1727960758030,0.28273759,60589.0,60586.0,0.24767802]
[1727960758265,0.28273759,60589.0,60581.0,0.001636]
[1727960758266,0.165059,60585.0,60581.0,0.001636]
[1727960758504,0.16414915,60588.0,60581.0,0.001636]
[1727960758505,0.44780259,60582.0,60581.0,0.001636]
[1727960758740,0.58261747,60582.0,60581.0,0.001636]
[1727960759971,0.60849493,60582.0,60581.0,0.001636]
[1727960760204,0.58261747,60582.0,60581.0,0.001636]
[1727960761375,0.59461747,60582.0,60581.0,0.001636]
[1727960761610,0.60261747,60582.0,60581.0,0.001636]
[1727960761854,0.46717573,60582.0,60581.0,0.001636]
[1727960762090,0.74191332,60582.0,60581.0,0.001636]
[1727960762550,0.84191332,60582.0,60581.0,0.001636]
[1727960763273,0.85091332,60582.0,60581.0,0.001636]
[1727960763506,0.85091332,60582.0,60575.0,0.001638]
[1727960763507,0.57281859,60576.0,60575.0,0.001638]
[1727960763741,0.70804218,60576.0,60575.0,0.001638]
[1727960764199,0.99077977,60576.0,60575.0,0.001638]
[1727960764709,1.016665,60576.0,60575.0,0.001638]
[1727960765184,0.47284359,60567.0,60566.0,0.24849602]
[1727960765425,0.7347972,60567.0,60566.0,0.24849602]
[1727960765681,0.45205961,60567.0,60566.0,0.24849602]
[1727960765915,0.47794634,60567.0,60566.0,0.000818]
[1727960767558,0.50794634,60567.0,60566.0,0.077718]
[1727960767817,0.49194634,60567.0,60566.0,0.000818]
[1727960768077,0.44185163,60567.0,60566.0,0.000818]
[1727960768353,0.46485163,60567.0,60566.0,0.000818]
[1727960768580,0.4409649,60567.0,60566.0,0.000818]
[1727960768827,0.4249649,60567.0,60566.0,0.000818]
[1727960769082,0.53315692,60567.0,60566.0,0.000818]
[1727960769328,0.51015692,60567.0,60566.0,0.000818]
[1727960769819,0.52415692,60567.0,60566.0,0.000818]
[1727960770057,0.3159649,60567.0,60566.0,0.000818]
[1727960770323,0.3299649,60567.0,60566.0,0.000818]
[1727960770559,0.3159649,60567.0,60566.0,0.000818]
[1727960770797,0.31784274,60567.0,60566.0,0.000818]
[1727960771031,0.3159649,60567.0,60566.0,0.000818]
[1727960771263,0.44187535,60567.0,60566.0,0.000818]
[1727960771495,0.43087535,60567.0,60566.0,0.000818]
[1727960771723,0.43187535,60567.0,60566.0,0.000818]
[1727960772186,0.42787535,60567.0,60566.0,0.000818]
[1727960772664,0.43087535,60567.0,60566.0,0.000818]
[1727960773587,0.43387535,60567.0,60566.0,0.000818]
[1727960773833,0.43087535,60567.0,60566.0,0.000818]
[1727960774082,0.43487535,60567.0,60566.0,0.000818]
[1727960774346,0.43187535,60567.0,60566.0,0.000818]
[1727960774607,0.42987535,60567.0,60566.0,0.000818]
[1727960774845,0.43287535,60567.0,60566.0,0.000818]
[1727960776558,0.45875973,60567.0,60566.0,0.000818]
[1727960780533,0.56075973,60567.0,60566.0,0.000818]
[1727960780777,0.55875973,60567.0,60566.0,0.000818]
[1727960781499,0.58175973,60567.0,60566.0,0.000818]
[1727960783447,0.58375973,60567.0,60566.0,0.000818]
[1727960783696,0.58175973,60567.0,60566.0,0.000818]
[1727960784170,0.58375973,60567.0,60566.0,0.000818]
[1727960784900,0.55087535,60567.0,60566.0,0.000818]
[1727960785142,0.53387535,60567.0,60566.0,0.001818]
[1727960785397,0.4079649,60567.0,60566.0,0.001818]
[1727960785631,0.4019649,60567.0,60566.0,0.000818]
[1727960786853,0.4079649,60567.0,60566.0,0.000818]
[1727960787099,0.57627495,60567.0,60566.0,0.000818]
[1727960787406,0.56827495,60567.0,60566.0,0.000818]
[1727960787918,0.57127495,60567.0,60566.0,0.000818]
[1727960788185,0.57416273,60567.0,60566.0,0.000818]
[1727960788425,0.57327495,60567.0,60566.0,0.000818]
[1727960788682,0.57127495,60567.0,60566.0,0.000818]
[1727960789141,0.57327495,60567.0,60566.0,0.000818]
[1727960790099,0.57127495,60567.0,60566.0,0.000818]
[1727960790343,0.57327495,60567.0,60566.0,0.000818]
[1727960791312,0.74547495,60567.0,60566.0,0.000818]
[1727960791557,0.80896514,60567.0,60566.0,0.000818]
[1727960792020,0.81996514,60567.0,60566.0,0.000818]
[1727960792253,0.82496514,60567.0,60566.0,0.000818]
[1727960792719,0.79907655,60567.0,60566.0,0.000818]
[1727960793193,0.81007655,60567.0,60566.0,0.000818]
[1727960793690,0.80807655,60567.0,60566.0,0.000818]
[1727960793911,0.79707655,60567.0,60566.0,0.000818]
[1727960794143,0.81107655,60567.0,60566.0,0.000818]
[1727960794380,0.79807655,60567.0,60566.0,1e-06]
[1727960794626,0.79807655,60567.0,60538.0,0.1746]
[1727960794627,0.265163,60546.0,60541.0,0.0162957]
[1727960794862,0.78749092,60546.0,60541.0,0.0162957]
[1727960795131,0.88189092,60546.0,60541.0,0.0162957]
[1727960795599,0.93056395,60546.0,60541.0,0.0162957]
[1727960796056,0.95645998,60546.0,60541.0,0.0162957]
[1727960796290,1.3953124,60546.0,60541.0,0.0162957]
[1727960796533,1.3953124,60546.0,60531.0,0.003809]
[1727960796534,0.85365218,60541.0,60532.0,0.24767802]
[1727960796756,1.04272951,60541.0,60532.0,0.24767802]
[1727960797934,1.07272951,60541.0,60532.0,0.24767802]
[1727960798384,1.06372951,60541.0,60531.0,0.003809]
[1727960798606,1.06372951,60541.0,60533.0,0.24767802]
[1727960798607,1.21303956,60541.0,60533.0,0.24767802]
[1727960798823,1.19903956,60541.0,60533.0,0.24767802]
[1727960799048,1.19403956,60541.0,60534.0,0.24767802]
[1727960799263,1.18003956,60541.0,60535.0,0.24767802]
[1727960799489,1.19403956,60541.0,60531.0,0.003809]
[1727960800166,1.2059404,60541.0,60531.0,0.003809]
[1727960800395,1.2199404,60541.0,60531.0,0.003809]
[1727960800623,1.18526737,60541.0,60531.0,0.003809]
[1727960801307,1.15936653,60541.0,60531.0,0.003809]
[1727960801609,0.267201,60532.0,60531.0,0.003809]
[1727960801844,0.71583468,60532.0,60531.0,0.003809]
[1727960802085,0.71395684,60532.0,60531.0,0.003809]
[1727960802580,0.71195684,60532.0,60531.0,0.003809]
[1727960802837,0.58895684,60532.0,60531.0,0.003809]
[1727960803073,0.60295684,60532.0,60531.0,0.003809]
[1727960803304,0.72933062,60532.0,60531.0,0.003809]
[1727960803758,0.56412962,60532.0,60531.0,0.003809]
[1727960804055,0.57812962,60532.0,60531.0,0.003809]
[1727960804280,0.61802975,60532.0,60531.0,0.003809]
[1727960804525,0.20891838,60532.0,60531.0,0.17410453]
[1727960804754,0.65685697,60532.0,60531.0,0.003809]
[1727960805007,0.62885697,60532.0,60531.0,0.00890053]
[1727960805281,0.72649825,60532.0,60531.0,0.003809]
[1727960805524,0.71249825,60532.0,60531.0,0.003809]
[1727960805759,0.70059812,60532.0,60531.0,0.003809]
[1727960806260,0.68659812,60532.0,60531.0,0.003809]
[1727960806505,0.78659812,60532.0,60531.0,0.003809]
[1727960806753,0.78359812,60532.0,60531.0,0.003809]
[1727960806998,0.78759812,60532.0,60531.0,0.003809]
[1727960807249,0.78359812,60532.0,60531.0,0.003809]
[1727960807496,0.77959812,60532.0,60531.0,0.003809]
[1727960807743,0.78759812,60532.0,60531.0,0.003809]
[1727960807981,0.77959812,60532.0,60531.0,0.003809]
[1727960808226,0.78459812,60532.0,60531.0,0.003809]
[1727960808979,0.8104986,60532.0,60531.0,0.003809]
[1727960809222,0.7104986,60532.0,60531.0,0.003809]
[1727960809701,0.53526371,60532.0,60531.0,0.003809]
[1727960810171,0.52626371,60532.0,60531.0,0.003809]
[1727960810442,0.53226371,60532.0,60531.0,0.003809]
[1727960810686,0.63226371,60532.0,60531.0,0.003809]
[1727960811383,0.62726371,60532.0,60531.0,0.003809]
[1727960811612,0.88376591,60532.0,60531.0,0.003809]
[1727960811834,0.88976591,60532.0,60531.0,0.003809]
[1727960812070,0.88376591,60532.0,60531.0,0.003809]
[1727960812292,0.89076591,60532.0,60531.0,0.003809]
[1727960812760,0.88376591,60532.0,60531.0,0.003809]
[1727960813268,0.89076591,60532.0,60531.0,0.003809]
[1727960813729,0.88376591,60532.0,60531.0,0.003809]
[1727960813984,0.88976591,60532.0,60531.0,0.003809]
[1727960814465,0.86986543,60532.0,60531.0,0.003809]
[1727960814704,0.86386543,60532.0,60531.0,0.003809]
[1727960814942,0.87586543,60532.0,60531.0,0.003809]
[1727960815410,0.87586543,60532.0,60531.0,0.004628]
[1727960817454,0.90176644,60532.0,60531.0,0.004628]
[1727960818379,0.87776644,60532.0,60531.0,0.004628]
[1727960818863,0.89176644,60532.0,60531.0,0.004628]
[1727960819093,0.90576644,60532.0,60531.0,0.004628]
[1727960819565,0.89176644,60532.0,60531.0,0.004628]
[1727960819799,0.90576644,60532.0,60531.0,0.004628]
[1727960820521,0.89176644,60532.0,60531.0,0.004628]
[1727960822251,0.64392427,60532.0,60531.0,0.004628]
[1727960822506,0.71592427,60532.0,60531.0,0.004628]
[1727960822734,0.73092427,60532.0,60531.0,0.004628]
[1727960822970,0.89411098,60532.0,60531.0,0.004628]
[1727960823249,0.87911098,60532.0,60531.0,0.004628]
[1727960823525,0.1,60531.0,60527.0,0.001636]
[1727960823785,0.40718543,60528.0,60527.0,0.001636]
[1727960824027,0.618979,60528.0,60527.0,0.001636]
[1727960824513,0.620979,60528.0,60527.0,0.001636]
[1727960824779,0.643979,60528.0,60527.0,0.001636]
[1727960825293,0.657979,60528.0,60527.0,0.001636]
[1727960825543,0.643979,60528.0,60527.0,0.001636]
[1727960825814,0.657979,60528.0,60527.0,0.001636]
[1727960826289,0.671979,60528.0,60527.0,0.001636]
[1727960827018,0.657979,60528.0,60527.0,0.001636]
[1727960827514,0.671979,60528.0,60527.0,0.001636]
[1727960827750,0.025,60522.0,60521.0,1e-06]
[1727960827994,0.78256541,60522.0,60521.0,1e-06]
[1727960828250,0.85382792,60522.0,60521.0,1e-06]
[1727960828505,0.95432747,60522.0,60521.0,1e-06]
[1727960828743,0.48142346,60522.0,60521.0,1e-06]
[1727960829012,0.84345675,60522.0,60521.0,1e-06]
[1727960829263,0.87145675,60522.0,60521.0,1e-06]
[1727960829513,1.66026076,60522.0,60521.0,1e-06]
[1727960829769,0.85745675,60522.0,60521.0,1e-06]
[1727960830030,0.86245675,60522.0,60521.0,1e-06]
[1727960830311,0.83245675,60522.0,60521.0,1e-06]
[1727960830571,0.65422747,60522.0,60521.0,1e-06]
[1727960830827,0.66822747,60522.0,60521.0,1e-06]
[1727960831306,0.63362061,60522.0,60521.0,1e-06]
[1727960831539,0.18249369,60522.0,60521.0,1e-06]
[1727960831774,0.18249369,60522.0,60521.0,0.00433566]
[1727960831775,0.16849369,60522.0,60521.0,0.00433566]
[1727960832020,0.1705876,60522.0,60521.0,0.165232]
[1727960832249,0.1565876,60522.0,60521.0,0.00433566]
[1727960832477,0.59349845,60522.0,60521.0,0.00433566]